[Event "55th Rubinstein Memorial-A 2019"]
[Site "Polanica-Zdroj"]
[Date "2019.08.24"]
[Round "8.15"]
[White "Stachecki, Mikolaj"]
[Black "Siekanski, Janusz"]
[Result "1-0"]
[ECO "B83"]
[WhiteElo "1765"]
[BlackElo "2263"]
[Annotator "NA"]
[PlyCount "71"]
[EventDate "2019.08.17"]
[EventType "swiss"]
[EventCountry "POL"]
[SourceTitle "playchess.com"]
[Source "ChessBase"]
[SourceQuality "1"]
[TimeControl "40/5400+30:1800+30"]

1. e4 {[%emt 0:00:00]} c5 {[%emt 0:00:00]} 2. Nf3 {[%emt 0:00:00]} e6 {[%emt 0:00:00]} 3. d4 {[%emt 0:00:03]} cxd4 {[%emt 0:00:01]} 4. Nxd4 {[%emt 0:00:08]} Nf6 {[%emt 0:00:12]} 5. Nc3 {[%emt 0:00:08]} d6 {[%emt 0:00:10]} 6. Be2 {[%emt 0:00:10]} Be7 {[%emt 0:01:02]} 7. O-O {[%emt 0:00:19]} O-O {[%emt 0:00:27]} 8. f4 {[%emt 0:01:08]} Nc6 {[%emt 0:00:22]} 9. Kh1 {[%emt 0:00:17]} a6 {[%emt 0:02:50]} 10. a4 {[%emt 0:00:17]} Qc7 {[%emt 0:02:52]} 11. Be3 {[%emt 0:00:10]} Re8 {[%emt 0:01:04]} 12. Bd3 {[%emt 0:00:16]} Nxd4 {[%emt 0:03:20]} 13. Bxd4 {[%emt 0:00:08]} e5 {[%emt 0:00:16]} 14. Be3 {[%emt 0:00:07]} exf4 {[%emt 0:01:01]} 15. Rxf4 {[%emt 0:00:08]} Be6 {[%emt 0:00:34]} 16. Nd5 {[%emt 0:00:22]} Bxd5 {[%emt 0:03:57]} 17. exd5 {[%emt 0:00:08]} Rf8 {[%emt 0:09:55]} 18. Bd4 {[%emt 0:04:14]} Ne8 {[%emt 0:05:10]} 19. Qh5 {[%emt 0:19:45]} g6 {[%emt 0:01:25]} 20. Rf3 {[%emt 0:01:13]} Bf6 {[%emt 0:06:05]} 21. Bxf6 {[%emt 0:15:13]} Nxf6 {[%emt 0:00:16]} 22. Qh4 {[%emt 0:00:17]} Nxd5 {[%emt 0:26:52]} 23. Rh3 {[%emt 0:01:41]} h5 {[%emt 0:00:33]} 24. Qg5 {[%emt 0:01:27]} Ne7 {[%emt 0:06:47]} 25. Rxh5 {[%emt 0:00:52]} f5 {[%emt 0:03:17]} 26. Rh3 {[%emt 0:21:24]} Rae8 {[%emt 0:09:04]} 27. Re1 {[%emt 0:07:50]} Rf7 {[%emt 0:04:09]} 28. Qh6 {[%emt 0:06:04]} Rg7 {[%emt 0:00:55]} 29. Bxf5 {[%emt 0:00:55]} Nxf5 {[%emt 0:02:46]} 30. Qh8+ {[%emt 0:00:09]} Kf7 {[%emt 0:00:03]} 31. Qxe8+ {[%emt 0:00:15]} Kf6 {[%emt 0:00:01]} 32. Rf3 {[%emt 0:08:45]} Kg5 {[%emt 0:01:44]} 33. Qe4 {[%emt 0:00:56]} d5 {[%emt 0:00:34]} 34. Qxd5 {[%emt 0:03:29]} Rh7 {[%emt 0:00:44]} 35. Qe5 {[%emt 0:00:28]} Qxc2 {[%emt 0:01:03]} 36. Rg3+ 1-0

[Event "55th Rubinstein Memorial-A 2019"]
[Site "Polanica-Zdroj"]
[Date "2019.08.24"]
[Round "8.16"]
[White "Niedbala, Bartlomiej"]
[Black "Kaczmarek, Arkadiusz"]
[Result "1-0"]
[ECO "A08"]
[WhiteElo "2169"]
[BlackElo "1986"]
[Annotator "NA"]
[PlyCount "109"]
[EventDate "2019.08.17"]
[EventType "swiss"]
[EventCountry "POL"]
[SourceTitle "playchess.com"]
[Source "ChessBase"]
[SourceQuality "1"]
[TimeControl "40/5400+30:1800+30"]

1. e4 {[%emt 0:00:00]} e6 {[%emt 0:00:00]} 2. d3 {[%emt 0:00:19]} d5 {[%emt 0:00:00]} 3. Nd2 {[%emt 0:00:04]} Nf6 {[%emt 0:00:09]} 4. Ngf3 {[%emt 0:00:10]} c5 {[%emt 0:00:18]} 5. g3 {[%emt 0:00:16]} Nc6 {[%emt 0:00:12]} 6. Bg2 {[%emt 0:00:06]} Be7 {[%emt 0:00:19]} 7. O-O {[%emt 0:00:05]} O-O {[%emt 0:00:30]} 8. Re1 {[%emt 0:00:43]} b5 {[%emt 0:00:50]} 9. e5 {[%emt 0:07:01]} Nd7 {[%emt 0:00:27]} 10. Nf1 {[%emt 0:00:01]} a5 {[%emt 0:00:30]} 11. h4 {[%emt 0:01:20]} b4 {[%emt 0:00:17]} 12. Bf4 {[%emt 0:03:05]} a4 {[%emt 0:00:42]} 13. a3 {[%emt 0:00:35]} bxa3 {[%emt 0:00:26]} 14. bxa3 {[%emt 0:00:02]} Ba6 {[%emt 0:00:23]} 15. N1h2 {[%emt 0:07:33]} c4 {[%emt 0:15:16]} 16. d4 {[%emt 0:02:16]} c3 {[%emt 0:00:12]} 17. Bh3 {[%emt 0:21:50]} Kh8 {[%emt 0:22:06]} 18. Re3 {[%emt 0:08:37]} Na5 {[%emt 0:00:10]} 19. Ng5 {[%emt 0:02:22]} Qe8 {[%emt 0:03:41]} 20. Rxc3 {[%emt 0:06:15]} Nc4 {[%emt 0:03:37]} 21. Ng4 {[%emt 0:16:25]} Rb8 {[%emt 0:10:32]} 22. Qf3 {[%emt 0:01:47]} Rb2 {[%emt 0:08:23]} 23. Bf1 {[%emt 0:03:48]} Bd8 {[%emt 0:08:55]} 24. Qd3 {[%emt 0:13:36]} g6 {[%emt 0:03:53]} 25. Qf3 {[%emt 0:02:26]} h5 {[%emt 0:00:22]} 26. Nh2 {[%emt 0:01:27]} Ba5 {[%emt 0:09:42]} 27. Bxc4 {[%emt 0:00:24]} Bxc4 {[%emt 0:01:54]} 28. g4 {[%emt 0:00:52]} hxg4 {[%emt 0:02:52]} 29. Nxg4 {[%emt 0:00:02]} Bxc3 {[%emt 0:00:21]} 30. Qxc3 {[%emt 0:00:11]} Qb8 {[%emt 0:00:19]} 31. Kh2 {[%emt 0:01:18]} Rb1 {[%emt 0:01:15]} 32. Rxb1 {[%emt 0:00:28]} Qxb1 {[%emt 0:00:02]} 33. Nf6 {[%emt 0:00:33]} Nxf6 {[%emt 0:07:14]} 34. exf6 {[%emt 0:00:01]} Qf1 {[%emt 0:00:38]} 35. Qg3 {[%emt 0:00:42]} Kg8 {[%emt 0:00:15]} 36. Nh3 {[%emt 0:00:46]} Qe2 {[%emt 0:00:14]} 37. Be3 {[%emt 0:00:27]} Qh5 {[%emt 0:00:32]} 38. Ng5 {[%emt 0:00:01]} Be2 {[%emt 0:00:39]} 39. f3 {[%emt 0:00:12]} Rc8 {[%emt 0:00:21]} 40. c3 {[%emt 0:00:00]} Bd1 {[%emt 0:00:00]} 41. Kh3 {[%emt 0:05:54]} Bc2 {[%emt 0:08:51]} 42. Qe5 {[%emt 0:01:25]} Bd3 {[%emt 0:10:59]} 43. Bf4 {[%emt 0:03:26]} Bf5+ {[%emt 0:05:24]} 44. Kg3 {[%emt 0:01:22]} Qh8 {[%emt 0:00:10]} 45. Be3 {[%emt 0:04:31]} Qh5 {[%emt 0:03:14]} 46. Bf4 {[%emt 0:00:03]} Qh8 {[%emt 0:00:12]} 47. c4 {[%emt 0:04:32]} dxc4 {[%emt 0:05:05]} 48. d5 {[%emt 0:00:01]} exd5 {[%emt 0:00:08]} 49. Qe7 {[%emt 0:10:42]} Rf8 {[%emt 0:00:01]} 50. Bd6 {[%emt 0:00:43]} Qh6 {[%emt 0:00:01]} 51. Nxf7 {[%emt 0:00:19]} Rxf7 {[%emt 0:00:02]} 52. Qe8+ {[%emt 0:00:05]} Rf8 {[%emt 0:00:03]} 53. f7+ {[%emt 0:00:03]} Kh7 {[%emt 0:00:24]} 54. Bxf8 {[%emt 0:00:05]} Qc1 {[%emt 0:00:17]} 55. Bc5 {[%emt 0:00:28]} 1-0

[Event "55th Rubinstein Memorial-A 2019"]
[Site "Polanica-Zdroj"]
[Date "2019.08.24"]
[Round "8.17"]
[White "Praczukowski, Stanislaw"]
[Black "Luberanski, Jakub"]
[Result "1/2-1/2"]
[ECO "A40"]
[WhiteElo "2126"]
[BlackElo "1996"]
[Annotator "NA"]
[PlyCount "62"]
[EventDate "2019.08.17"]
[EventType "swiss"]
[EventCountry "POL"]
[SourceTitle "playchess.com"]
[Source "ChessBase"]
[SourceQuality "1"]
[TimeControl "40/5400+30:1800+30"]

1. d4 {[%emt 0:00:00]} Nf6 {[%emt 0:00:00]} 2. c4 {[%emt 0:00:00]} e6 {[%emt 0:00:00]} 3. g3 {[%emt 0:00:00]} Bb4+ {[%emt 0:00:00]} 4. Nd2 {[%emt 0:00:00]} c5 {[%emt 0:00:00]} 5. Ngf3 {[%emt 0:00:50]} cxd4 {[%emt 0:00:20]} 6. Nxd4 {[%emt 0:00:22]} Qb6 {[%emt 0:00:50]} 7. N4f3 {[%emt 0:01:57]} Ne4 {[%emt 0:05:41]} 8. e3 {[%emt 0:02:00]} O-O {[%emt 0:00:41]} 9. Bg2 {[%emt 0:03:47]} d5 {[%emt 0:01:21]} 10. O-O {[%emt 0:09:45]} Bxd2 {[%emt 0:03:51]} 11. Nxd2 {[%emt 0:00:35]} Nxd2 {[%emt 0:00:16]} 12. Qxd2 {[%emt 0:01:51]} dxc4 {[%emt 0:00:18]} 13. Qc3 {[%emt 0:02:47]} Nc6 {[%emt 0:01:24]} 14. Qxc4 {[%emt 0:02:27]} e5 {[%emt 0:00:40]} 15. b3 {[%emt 0:03:07]} Be6 {[%emt 0:00:10]} 16. Qh4 {[%emt 0:00:48]} Rfd8 {[%emt 0:02:07]} 17. Bb2 {[%emt 0:00:50]} Bd5 {[%emt 0:12:47]} 18. Be4 {[%emt 0:08:16]} Bxe4 {[%emt 0:02:01]} 19. Qxe4 {[%emt 0:00:02]} f6 {[%emt 0:00:46]} 20. Qc4+ {[%emt 0:01:33]} Kh8 {[%emt 0:00:10]} 21. Rfd1 {[%emt 0:00:54]} Rxd1+ {[%emt 0:07:16]} 22. Rxd1 {[%emt 0:00:37]} Rd8 {[%emt 0:00:13]} 23. Rd5 {[%emt 0:01:50]} Rxd5 {[%emt 0:01:18]} 24. Qxd5 {[%emt 0:00:08]} h6 {[%emt 0:01:02]} 25. Ba3 {[%emt 0:05:54]} Qa6 {[%emt 0:15:10]} 26. Bf8 {[%emt 0:09:10]} Qxa2 {[%emt 0:00:15]} 27. Qd7 {[%emt 0:00:58]} Qb1+ {[%emt 0:00:19]} 28. Kg2 {[%emt 0:00:06]} Qe4+ {[%emt 0:00:23]} 29. Kg1 {[%emt 0:00:12]} Qb1+ {[%emt 0:00:04]} 30. Kg2 {[%emt 0:00:05]} Qe4+ {[%emt 0:00:05]} 31. Kg1 {[%emt 0:07:56]} Qb1+ {[%emt 0:00:04]} 1/2-1/2

[Event "55th Rubinstein Memorial-A 2019"]
[Site "Polanica-Zdroj"]
[Date "2019.08.24"]
[Round "8.18"]
[White "Kulesza, Andrzej"]
[Black "Slomczewski, Michal"]
[Result "1/2-1/2"]
[ECO "B47"]
[WhiteElo "1940"]
[BlackElo "2115"]
[Annotator "NA"]
[PlyCount "80"]
[EventDate "2019.08.17"]
[EventType "swiss"]
[EventCountry "POL"]
[SourceTitle "playchess.com"]
[Source "ChessBase"]
[SourceQuality "1"]
[TimeControl "40/5400+30:1800+30"]

1. e4 {[%emt 0:00:00]} c5 {[%emt 0:00:16]} 2. Nf3 {[%emt 0:00:28]} e6 {[%emt 0:00:08]} 3. d4 {[%emt 0:00:39]} cxd4 {[%emt 0:00:07]} 4. Nxd4 {[%emt 0:00:41]} Nc6 {[%emt 0:00:04]} 5. Nc3 {[%emt 0:01:32]} Qc7 {[%emt 0:00:20]} 6. g3 {[%emt 0:02:33]} a6 {[%emt 0:00:44]} 7. Bg2 {[%emt 0:01:31]} Nf6 {[%emt 0:00:14]} 8. O-O {[%emt 0:01:55]} Nxd4 {[%emt 0:00:16]} 9. Qxd4 {[%emt 0:00:12]} Bc5 {[%emt 0:00:08]} 10. Qd1 {[%emt 0:01:12]} O-O {[%emt 0:07:01]} 11. Bf4 {[%emt 0:04:58]} d6 {[%emt 0:02:54]} 12. Na4 {[%emt 0:01:32]} e5 {[%emt 0:03:08]} 13. Nxc5 {[%emt 0:02:55]} dxc5 {[%emt 0:06:56]} 14. Bg5 {[%emt 0:03:13]} Rd8 {[%emt 0:13:03]} 15. Qe2 {[%emt 0:01:58]} Qb6 {[%emt 0:07:17]} 16. c3 {[%emt 0:05:28]} h6 {[%emt 0:09:27]} 17. Be3 {[%emt 0:03:14]} Be6 {[%emt 0:02:12]} 18. f3 {[%emt 0:07:11]} Qc7 {[%emt 0:09:19]} 19. Qf2 {[%emt 0:04:59]} b6 {[%emt 0:02:27]} 20. Rfc1 {[%emt 0:02:44]} Rd6 {[%emt 0:05:21]} 21. Bf1 {[%emt 0:02:28]} Rc6 {[%emt 0:01:41]} 22. c4 {[%emt 0:05:06]} Ne8 {[%emt 0:03:10]} 23. b3 {[%emt 0:02:36]} a5 {[%emt 0:03:02]} 24. a4 {[%emt 0:00:20]} Rd8 {[%emt 0:02:49]} 25. Rd1 {[%emt 0:00:52]} Rxd1 {[%emt 0:01:40]} 26. Rxd1 {[%emt 0:01:14]} Rd6 {[%emt 0:00:09]} 27. Rxd6 {[%emt 0:00:36]} Qxd6 {[%emt 0:00:12]} 28. Qd2 {[%emt 0:00:27]} Qxd2 {[%emt 0:00:45]} 29. Bxd2 {[%emt 0:00:05]} f6 {[%emt 0:00:39]} 30. Kg2 {[%emt 0:00:59]} Nd6 {[%emt 0:02:43]} 31. Bd3 {[%emt 0:01:53]} Kf7 {[%emt 0:01:22]} 32. h3 {[%emt 0:02:37]} Ke7 {[%emt 0:01:47]} 33. g4 {[%emt 0:02:36]} Nf7 {[%emt 0:00:36]} 34. h4 {[%emt 0:00:48]} Nd8 {[%emt 0:00:34]} 35. h5 {[%emt 0:01:10]} Nc6 {[%emt 0:00:22]} 36. Bc2 {[%emt 0:00:08]} Nd4 {[%emt 0:00:16]} 37. Bd1 {[%emt 0:00:06]} Kf7 {[%emt 0:01:11]} 38. Kg3 {[%emt 0:01:59]} Ke7 {[%emt 0:04:15]} 39. Kf2 {[%emt 0:03:46]} Kd6 {[%emt 0:00:08]} 40. Ke3 {[%emt 0:00:00]} Bd7 {[%emt 0:00:00] Kxd4} 1/2-1/2

[Event "55th Rubinstein Memorial-A 2019"]
[Site "Polanica-Zdroj"]
[Date "2019.08.24"]
[Round "8.19"]
[White "Szczurek, Krzysztof"]
[Black "Kacprzak, Kacper"]
[Result "1-0"]
[ECO "A05"]
[WhiteElo "2112"]
[BlackElo "1856"]
[Annotator "NA"]
[PlyCount "67"]
[EventDate "2019.08.17"]
[EventType "swiss"]
[EventCountry "POL"]
[SourceTitle "playchess.com"]
[Source "ChessBase"]
[SourceQuality "1"]
[TimeControl "40/5400+30:1800+30"]

1. Nf3 Nf6 2. g3 {[%emt 0:00:00]} d5 {[%emt 0:00:53]} 3. Bg2 {[%emt 0:00:00]} c5 {[%emt 0:00:31]} 4. O-O {[%emt 0:00:00]} Nc6 {[%emt 0:00:13]} 5. d3 {[%emt 0:00:00]} e5 {[%emt 0:01:52]} 6. Nbd2 {[%emt 0:00:04]} Be7 {[%emt 0:01:39]} 7. e4 {[%emt 0:00:06]} O-O {[%emt 0:02:34]} 8. c3 {[%emt 0:03:06]} Re8 {[%emt 0:05:42]} 9. Qe2 {[%emt 0:00:46]} Qc7 {[%emt 0:01:28]} 10. Ne1 {[%emt 0:04:31]} dxe4 {[%emt 0:03:01]} 11. dxe4 {[%emt 0:00:05]} Bf8 {[%emt 0:15:01]} 12. Nc2 {[%emt 0:02:32]} g6 {[%emt 0:03:28]} 13. Ne3 {[%emt 0:01:18]} Bg7 {[%emt 0:08:50]} 14. Nb3 {[%emt 0:03:01]} Na5 {[%emt 0:09:36]} 15. Nxa5 {[%emt 0:09:53]} Qxa5 {[%emt 0:00:06]} 16. Nc4 {[%emt 0:00:05]} Qa6 {[%emt 0:00:31]} 17. Re1 {[%emt 0:00:10]} b5 {[%emt 0:03:46]} 18. Na3 {[%emt 0:02:50]} c4 {[%emt 0:01:48]} 19. Nc2 {[%emt 0:00:55]} Bb7 {[%emt 0:01:24]} 20. a4 {[%emt 0:04:29]} bxa4 {[%emt 0:01:32]} 21. f3 {[%emt 0:00:16]} Nd7 {[%emt 0:01:27]} 22. Be3 {[%emt 0:01:30]} Bf8 {[%emt 0:04:50]} 23. Bf1 {[%emt 0:03:06]} Rac8 {[%emt 0:01:31]} 24. b3 {[%emt 0:11:20]} Nb6 {[%emt 0:07:39]} 25. Qf2 {[%emt 0:00:30]} Qb5 {[%emt 0:07:00]} 26. bxa4 {[%emt 0:03:43]} Qa5 {[%emt 0:00:27]} 27. Reb1 {[%emt 0:01:20]} Bc6 {[%emt 0:05:02]} 28. Nb4 {[%emt 0:06:22]} Bxa4 {[%emt 0:05:09]} 29. Bh3 {[%emt 0:12:56]} Rc5 {[%emt 0:02:11]} 30. Kh1 {[%emt 0:01:00]} Rb5 {[%emt 0:01:21]} 31. Bxb6 {[%emt 0:00:39]} axb6 {[%emt 0:00:40]} 32. Bd7 {[%emt 0:00:29]} Ra8 {[%emt 0:01:22]} 33. Bxb5 {[%emt 0:00:15]} Qxb5 {[%emt 0:00:04]} 34. Nd5 {[%emt 0:00:09]} 1-0

[Event "55th Rubinstein Memorial-A 2019"]
[Site "Polanica-Zdroj"]
[Date "2019.08.24"]
[Round "8.20"]
[White "Malicka, Maria"]
[Black "Hasterok, Mateusz"]
[Result "1-0"]
[ECO "B19"]
[WhiteElo "2062"]
[BlackElo "1911"]
[Annotator "NA"]
[PlyCount "119"]
[EventDate "2019.08.17"]
[EventType "swiss"]
[EventCountry "POL"]
[SourceTitle "playchess.com"]
[Source "ChessBase"]
[SourceQuality "1"]
[TimeControl "40/5400+30:1800+30"]

1. e4 {[%emt 0:00:00]} c6 {[%emt 0:00:00]} 2. d4 {[%emt 0:00:00]} d5 {[%emt 0:00:00]} 3. Nc3 {[%emt 0:00:00]} dxe4 {[%emt 0:00:00]} 4. Nxe4 {[%emt 0:00:00]} Bf5 {[%emt 0:00:00]} 5. Ng3 {[%emt 0:00:00]} Bg6 {[%emt 0:00:00]} 6. h4 {[%emt 0:00:00]} h6 {[%emt 0:00:00]} 7. Nf3 {[%emt 0:00:00]} Nd7 {[%emt 0:00:00]} 8. h5 {[%emt 0:00:00]} Bh7 {[%emt 0:00:02]} 9. Bd3 {[%emt 0:00:04]} Bxd3 {[%emt 0:00:04]} 10. Qxd3 {[%emt 0:00:02]} e6 {[%emt 0:00:06]} 11. Bd2 {[%emt 0:00:12]} Ngf6 {[%emt 0:00:06]} 12. O-O-O {[%emt 0:00:16]} Be7 {[%emt 0:00:11]} 13. Ne4 {[%emt 0:00:11]} Nxe4 {[%emt 0:00:04]} 14. Qxe4 {[%emt 0:00:03]} Nf6 {[%emt 0:00:05]} 15. Qd3 {[%emt 0:00:09]} Qd5 {[%emt 0:00:03]} 16. c4 {[%emt 0:00:11]} Qe4 {[%emt 0:00:04]} 17. Qb3 {[%emt 0:00:03]} O-O-O {[%emt 0:07:21]} 18. Rhe1 {[%emt 0:07:43]} Qf5 {[%emt 0:04:07]} 19. Re5 {[%emt 0:02:31]} Qg4 {[%emt 0:12:08]} 20. Ra5 {[%emt 0:04:37]} a6 {[%emt 0:00:36]} 21. Ne5 {[%emt 0:13:49]} Qxd4 {[%emt 0:00:38]} 22. Nxf7 {[%emt 0:00:14]} Ne4 {[%emt 0:03:01]} 23. Nxd8 {[%emt 0:01:13]} Qxd8 {[%emt 0:00:23]} 24. Be1 {[%emt 0:16:26]} Qc7 {[%emt 0:03:07]} 25. Qf3 {[%emt 0:21:56]} Nc5 {[%emt 0:09:42]} 26. Kb1 {[%emt 0:02:48]} Rf8 {[%emt 0:03:55]} 27. Qe3 {[%emt 0:03:07]} Qb6 {[%emt 0:05:10]} 28. Ra3 {[%emt 0:01:09]} Bg5 {[%emt 0:03:30]} 29. Qe2 {[%emt 0:01:52]} Rd8 {[%emt 0:13:38]} 30. Ba5 {[%emt 0:02:34]} Rxd1+ {[%emt 0:00:06]} 31. Qxd1 {[%emt 0:00:02]} Qa7 {[%emt 0:00:06]} 32. Qd6 {[%emt 0:00:22]} b6 {[%emt 0:03:33]} 33. Qxc6+ {[%emt 0:00:24]} Qc7 {[%emt 0:00:03]} 34. Qxb6 {[%emt 0:03:52]} Qe5 {[%emt 0:01:20]} 35. Qc6+ {[%emt 0:01:01]} Kb8 {[%emt 0:00:17]} 36. Rf3 {[%emt 0:04:29]} Bf6 {[%emt 0:00:44]} 37. Bc3 {[%emt 0:04:58]} Qe2 {[%emt 0:01:36]} 38. Qd6+ {[%emt 0:00:05]} Kb7 {[%emt 0:00:44]} 39. Bxf6 {[%emt 0:03:27]} gxf6 {[%emt 0:01:05]} 40. Qd4 {[%emt 0:00:00]} Qe1+ {[%emt 0:00:00]} 41. Kc2 {[%emt 0:07:25]} Qe2+ {[%emt 0:05:21]} 42. Qd2 {[%emt 0:02:08]} Qe4+ {[%emt 0:02:28]} 43. Kd1 {[%emt 0:01:40]} Qb1+ {[%emt 0:00:23]} 44. Qc1 {[%emt 0:03:29]} Qe4 {[%emt 0:02:10]} 45. Qxh6 {[%emt 0:01:09]} Qxc4 {[%emt 0:01:31]} 46. Qd2 {[%emt 0:03:22]} Qf1+ {[%emt 0:01:29]} 47. Kc2 {[%emt 0:01:40]} Qxg2 {[%emt 0:01:00]} 48. Qe3 {[%emt 0:05:44]} Qg4 {[%emt 0:02:25]} 49. Rf4 {[%emt 0:00:40]} Qxh5 {[%emt 0:00:46]} 50. Qf3+ {[%emt 0:00:45]} Qxf3 {[%emt 0:00:07]} 51. Rxf3 {[%emt 0:00:02]} f5 {[%emt 0:00:07]} 52. Kc3 {[%emt 0:04:58]} Kc6 {[%emt 0:00:24]} 53. Kd4 {[%emt 0:01:32]} Kd6 {[%emt 0:00:06]} 54. Ra3 {[%emt 0:00:17]} e5+ {[%emt 0:00:08]} 55. Ke3 {[%emt 0:00:18]} f4+ {[%emt 0:00:31]} 56. Ke2 {[%emt 0:00:08]} e4 {[%emt 0:00:24]} 57. b4 {[%emt 0:00:24]} Nd7 {[%emt 0:00:37]} 58. Rxa6+ {[%emt 0:00:10]} Kd5 {[%emt 0:00:03]} 59. a4 {[%emt 0:00:56]} Ne5 {[%emt 0:01:11]} 60. Ra5+ 1-0

[Event "55th Rubinstein Memorial-A 2019"]
[Site "Polanica-Zdroj"]
[Date "2019.08.24"]
[Round "8.21"]
[White "Zych, Marek"]
[Black "Jeda, Maciej"]
[Result "1-0"]
[ECO "E98"]
[WhiteElo "2061"]
[BlackElo "1815"]
[Annotator "NA"]
[PlyCount "91"]
[EventDate "2019.08.17"]
[EventType "swiss"]
[EventCountry "POL"]
[SourceTitle "playchess.com"]
[Source "ChessBase"]
[SourceQuality "1"]
[TimeControl "40/5400+30:1800+30"]

1. Nf3 {[%emt 0:04:11]} d6 {[%emt 0:00:00]} 2. d4 {[%emt 0:00:12]} Nf6 {[%emt 0:00:00]} 3. c4 {[%emt 0:00:14]} g6 {[%emt 0:00:05]} 4. Nc3 {[%emt 0:00:20]} Bg7 {[%emt 0:00:08]} 5. e4 {[%emt 0:00:12]} O-O {[%emt 0:00:09]} 6. Be2 {[%emt 0:00:10]} e5 {[%emt 0:00:09]} 7. O-O {[%emt 0:00:15]} Nc6 {[%emt 0:00:07]} 8. d5 {[%emt 0:00:42]} Ne7 {[%emt 0:00:09]} 9. Ne1 {[%emt 0:00:30]} Ne8 {[%emt 0:01:54]} 10. f3 {[%emt 0:00:19]} f5 {[%emt 0:00:09]} 11. g4 {[%emt 0:00:14]} Nf6 {[%emt 0:18:35]} 12. Nd3 {[%emt 0:03:38]} Qd7 {[%emt 0:02:58]} 13. Nf2 {[%emt 0:00:13]} h6 {[%emt 0:05:04]} 14. h4 {[%emt 0:02:43]} a6 {[%emt 0:05:25]} 15. Bd2 {[%emt 0:02:01]} Rb8 {[%emt 0:00:48]} 16. b4 {[%emt 0:05:47]} c6 {[%emt 0:02:04]} 17. a4 {[%emt 0:02:06]} Qc7 {[%emt 0:10:44]} 18. a5 {[%emt 0:01:18]} Bd7 {[%emt 0:10:02]} 19. Kg2 {[%emt 0:04:47]} b6 {[%emt 0:18:57]} 20. axb6 {[%emt 0:03:46]} Qxb6 {[%emt 0:00:17]} 21. Nd3 {[%emt 0:01:30]} Qd4 {[%emt 0:04:47]} 22. Nf2 {[%emt 0:00:15]} cxd5 {[%emt 0:04:26]} 23. cxd5 {[%emt 0:00:35]} Rxb4 {[%emt 0:00:53]} 24. Rxa6 {[%emt 0:10:18]} Rc8 {[%emt 0:07:38]} 25. Qc2 {[%emt 0:02:01]} fxg4 {[%emt 0:05:07]} 26. fxg4 {[%emt 0:00:51]} h5 {[%emt 0:00:38]} 27. g5 {[%emt 0:02:51]} Nfxd5 {[%emt 0:01:08]} 28. exd5 {[%emt 0:01:26]} Nf5 {[%emt 0:00:40]} 29. Rh1 {[%emt 0:01:24]} Nxh4+ {[%emt 0:00:20]} 30. Rxh4 {[%emt 0:02:29]} Qxh4 {[%emt 0:00:08]} 31. Qxg6 {[%emt 0:02:46]} Rf8 {[%emt 0:00:22]} 32. Ncd1 {[%emt 0:05:10]} Bf5 {[%emt 0:00:26]} 33. Qxh5 {[%emt 0:00:23]} Be4+ {[%emt 0:00:57]} 34. Nxe4 {[%emt 0:01:41]} Qxe4+ {[%emt 0:00:05]} 35. Bf3 {[%emt 0:00:11]} Qd3 {[%emt 0:00:44]} 36. Bxb4 {[%emt 0:00:38]} Qxa6 {[%emt 0:00:07]} 37. Nf2 {[%emt 0:03:25]} e4 {[%emt 0:01:24]} 38. Nxe4 {[%emt 0:00:25]} Qa2+ {[%emt 0:00:09]} 39. Nf2 {[%emt 0:01:09]} Bd4 {[%emt 0:00:58]} 40. Be1 {[%emt 0:00:00]} Qa1 {[%emt 0:00:00]} 41. Qg6+ {[%emt 0:02:42]} Bg7 {[%emt 0:01:53]} 42. Bg4 {[%emt 0:09:38]} Rf4 {[%emt 0:03:16]} 43. Be6+ {[%emt 0:00:16]} Kf8 {[%emt 0:00:15]} 44. Bd2 {[%emt 0:00:51]} Rxf2+ {[%emt 0:01:27]} 45. Kxf2 {[%emt 0:00:12]} Qd4+ {[%emt 0:00:39]} 46. Kf3 {[%emt 0:02:58]} 1-0

[Event "55th Rubinstein Memorial-A 2019"]
[Site "Polanica-Zdroj"]
[Date "2019.08.24"]
[Round "8.22"]
[White "Vanduyfhuys, Daria"]
[Black "Grochol, Kamil"]
[Result "0-1"]
[ECO "D31"]
[WhiteElo "2160"]
[BlackElo "1837"]
[Annotator "NA"]
[PlyCount "68"]
[EventDate "2019.08.17"]
[EventType "swiss"]
[EventCountry "POL"]
[SourceTitle "playchess.com"]
[Source "ChessBase"]
[SourceQuality "1"]
[TimeControl "40/5400+30:1800+30"]

1. d4 {[%emt 0:00:00]} d5 {[%emt 0:00:00]} 2. c4 {[%emt 0:00:00]} e6 {[%emt 0:00:00]} 3. Nc3 {[%emt 0:00:00]} a6 {[%emt 0:00:09]} 4. cxd5 {[%emt 0:00:00]} exd5 {[%emt 0:00:05]} 5. Bf4 {[%emt 0:00:03]} Nf6 {[%emt 0:02:16]} 6. e3 {[%emt 0:00:17]} Bd6 {[%emt 0:01:03]} 7. Bxd6 {[%emt 0:01:03]} Qxd6 {[%emt 0:00:11]} 8. Bd3 {[%emt 0:01:06]} O-O {[%emt 0:01:20]} 9. h3 {[%emt 0:05:10]} b6 {[%emt 0:03:30]} 10. Nf3 {[%emt 0:00:45]} Nbd7 {[%emt 0:01:08]} 11. O-O {[%emt 0:00:25]} Bb7 {[%emt 0:00:45]} 12. Re1 {[%emt 0:02:06]} Ne4 {[%emt 0:06:25]} 13. Rc1 {[%emt 0:02:00]} Rfe8 {[%emt 0:04:12]} 14. a3 {[%emt 0:05:51]} Nxc3 {[%emt 0:16:46]} 15. Rxc3 {[%emt 0:01:47]} c5 {[%emt 0:05:53]} 16. dxc5 {[%emt 0:02:18]} bxc5 {[%emt 0:03:16]} 17. b4 {[%emt 0:12:32]} cxb4 {[%emt 0:11:33]} 18. axb4 {[%emt 0:00:08]} Ne5 {[%emt 0:03:16]} 19. Be2 {[%emt 0:08:48]} Qxb4 {[%emt 0:04:52]} 20. Rb3 {[%emt 0:01:57]} Nxf3+ {[%emt 0:00:42]} 21. Bxf3 {[%emt 0:00:12]} Qe7 {[%emt 0:00:48]} 22. Qb1 {[%emt 0:11:11]} Bc6 {[%emt 0:08:54]} 23. Rc1 {[%emt 0:00:08]} Rac8 {[%emt 0:07:52]} 24. Bg4 {[%emt 0:00:40]} Rc7 {[%emt 0:05:48]} 25. Rbc3 {[%emt 0:03:07]} Rb7 {[%emt 0:00:50]} 26. Qa2 {[%emt 0:01:31]} Bb5 {[%emt 0:00:45]} 27. Qxd5 {[%emt 0:00:26]} Rd8 {[%emt 0:01:26]} 28. Qf3 {[%emt 0:05:13]} g6 {[%emt 0:01:09]} 29. Rc8 {[%emt 0:06:01]} Rxc8 {[%emt 0:00:55]} 30. Rxc8+ {[%emt 0:00:07]} Kg7 {[%emt 0:00:21]} 31. Qd5 {[%emt 0:02:53]} Rc7 {[%emt 0:00:58]} 32. Rb8 {[%emt 0:05:24]} Rc1+ {[%emt 0:00:51]} 33. Bd1 {[%emt 0:01:11]} Qd7 {[%emt 0:01:52]} 34. Rxb5 {[%emt 0:06:28]} Rxd1+ {[%emt 0:00:07]} 0-1

[Event "55th Rubinstein Memorial-A 2019"]
[Site "Polanica-Zdroj"]
[Date "2019.08.24"]
[Round "8.23"]
[White "Galuszka, Kamil"]
[Black "Michalska, Aleksandra"]
[Result "1/2-1/2"]
[ECO "C44"]
[WhiteElo "2058"]
[BlackElo "1792"]
[Annotator "NA"]
[PlyCount "93"]
[EventDate "2019.08.17"]
[EventType "swiss"]
[EventCountry "POL"]
[SourceTitle "playchess.com"]
[Source "ChessBase"]
[SourceQuality "1"]
[TimeControl "40/5400+30:1800+30"]

1. e4 e5 2. Nf3 Nc6 3. d4 exd4 4. Nxd4 Qh4 5. Nc3 Bb4 6. Be2 Qxe4 7. Ndb5 Bxc3+ 8. bxc3 Kd8 9. O-O a6 10. Nd4 Nxd4 11. cxd4 Nf6 12. Bf3 Qf5 13. Be3 d5 14. c4 Be6 15. Rb1 Rb8 16. c5 Bd7 17. Be2 Ke7 18. Bd3 Qh5 19. Qe1 Rhc8 20. Bf4+ Kf8 21. Qa5 Ne8 22. Rfe1 f6 23. c6 Bxc6 24. Qc5+ Kg8 25. Qe7 Qg4 26. Re3 Qd7 27. Qb4 Nd6 28. Rbe1 Re8 29. Qb1 g5 30. Bxd6 cxd6 31. Rxe8+ Rxe8 32. Rxe8+ Qxe8 33. Bxh7+ Kg7 34. h3 b5 35. Bf5 Bd7 36. Qc2 Bxf5 37. Qxf5 Qc6 38. g4 a5 39. Kg2 b4 40. h4 gxh4 41. Kh3 Qc3+ 42. Kxh4 Qxd4 43. f4 Qf2+ 44. Kh3 Qf3+ 45. Kh4 Qf2+ 46. Kh5 Qa7 47. Kh4 1/2-1/2